[Event "Early-Titled-Tuesday-Blitz-July-09-2024"]
[Site "Chess.com"]
[Date "2024.07.09"]
[Round "1"]
[White "GoltsevDmitry2000"]
[Black "Arimin1329"]
[Result "1-0"]
[WhiteElo "2727"]
[BlackElo "2405"]
[TimeControl "180+1"]
[EndTime "8:08:43 PDT"]
[Termination "GoltsevDmitry2000 won by checkmate"]

1. e4 {[%clk 0:02:59.5]} 1... c6 {[%clk 0:02:59.6]} 2. e5 {[%clk 0:02:59.4]}
2... d5 {[%clk 0:02:57.9]} 3. exd6 {[%clk 0:03:00.3]} 3... exd6 {[%clk
0:02:56.6]} 4. d4 {[%clk 0:03:00.3]} 4... d5 {[%clk 0:02:56.9]} 5. Nf3 {[%clk
0:03:00.7]} 5... Nf6 {[%clk 0:02:57.2]} 6. c4 {[%clk 0:03:01.6]} 6... Bb4+
{[%clk 0:02:50.4]} 7. Nc3 {[%clk 0:03:00.9]} 7... O-O {[%clk 0:02:50.5]} 8. Be2
{[%clk 0:03:00.8]} 8... dxc4 {[%clk 0:02:50.2]} 9. Bxc4 {[%clk 0:03:01.7]} 9...
Nbd7 {[%clk 0:02:48.4]} 10. O-O {[%clk 0:02:59.8]} 10... Nb6 {[%clk 0:02:48.6]}
11. Bb3 {[%clk 0:02:59.6]} 11... Bg4 {[%clk 0:02:49]} 12. Bg5 {[%clk 0:02:58.7]}
12... h6 {[%clk 0:02:40.9]} 13. Bh4 {[%clk 0:02:58.5]} 13... Bxf3 {[%clk
0:02:40.9]} 14. Qxf3 {[%clk 0:02:55.4]} 14... Qxd4 {[%clk 0:02:40.2]} 15. Bg3
{[%clk 0:02:53.5]} 15... Rad8 {[%clk 0:02:25.9]} 16. Rfe1 {[%clk 0:02:43.5]}
16... Rfe8 {[%clk 0:01:56.6]} 17. Rad1 {[%clk 0:02:38.7]} 17... Qg4 {[%clk
0:01:44.2]} 18. Rxd8 {[%clk 0:02:19.1]} 18... Rxd8 {[%clk 0:01:41.5]} 19. Qxg4
{[%clk 0:02:03.6]} 19... Nxg4 {[%clk 0:01:42.4]} 20. Re4 {[%clk 0:02:03.6]}
20... Bxc3 {[%clk 0:01:23.4]} 21. bxc3 {[%clk 0:02:02.7]} 21... Nf6 {[%clk
0:01:22.5]} 22. Re7 {[%clk 0:02:02.3]} 22... Re8 {[%clk 0:01:22.8]} 23. Bxf7+
{[%clk 0:01:49.5]} 23... Kf8 {[%clk 0:01:22.9]} 24. Rxe8+ {[%clk 0:01:45]} 24...
Nxe8 {[%clk 0:01:22.4]} 25. Bg6 {[%clk 0:01:33.4]} 25... Nd5 {[%clk 0:01:19.5]}
26. c4 {[%clk 0:01:32.2]} 26... Ne7 {[%clk 0:01:16.7]} 27. Bd3 {[%clk
0:01:26.5]} 27... Kf7 {[%clk 0:01:16.4]} 28. Kf1 {[%clk 0:01:23]} 28... Ke6
{[%clk 0:01:14.8]} 29. Ke2 {[%clk 0:01:23.6]} 29... Nd6 {[%clk 0:01:14.2]} 30.
c5 {[%clk 0:01:20.6]} 30... Ndf5 {[%clk 0:01:09.8]} 31. Bb8 {[%clk 0:01:20.2]}
31... Nd5 {[%clk 0:01:00.1]} 32. Kd2 {[%clk 0:01:01.3]} 32... a6 {[%clk
0:00:52.7]} 33. g3 {[%clk 0:00:58]} 33... Nd4 {[%clk 0:00:49.6]} 34. Be4 {[%clk
0:00:38.2]} 34... Nf6 {[%clk 0:00:44.4]} 35. Bg2 {[%clk 0:00:36.6]} 35... Kd7
{[%clk 0:00:34.7]} 36. Bh3+ {[%clk 0:00:35.2]} 36... Ne6 {[%clk 0:00:32.5]} 37.
Kd3 {[%clk 0:00:26.8]} 37... Ke7 {[%clk 0:00:31.6]} 38. Bd6+ {[%clk 0:00:25.2]}
38... Kf7 {[%clk 0:00:31.7]} 39. f4 {[%clk 0:00:25]} 39... Nd7 {[%clk
0:00:31.1]} 40. Kc4 {[%clk 0:00:23.5]} 40... Nf6 {[%clk 0:00:19.3]} 41. Kb4
{[%clk 0:00:21.7]} 41... Ne4 {[%clk 0:00:19.3]} 42. Bf5 {[%clk 0:00:15.4]} 42...
Nxd6 {[%clk 0:00:16.8]} 43. cxd6 {[%clk 0:00:16.3]} 43... Nd4 {[%clk 0:00:15.1]}
44. Bc8 {[%clk 0:00:13.5]} 44... b6 {[%clk 0:00:13.1]} 45. Kc4 {[%clk 0:00:11]}
45... Nb5 {[%clk 0:00:11.6]} 46. d7 {[%clk 0:00:07.2]} 46... Ke7 {[%clk
0:00:11.9]} 47. Bxa6 {[%clk 0:00:06.6]} 47... Nd6+ {[%clk 0:00:12]} 48. Kd4
{[%clk 0:00:06.8]} 48... Kxd7 {[%clk 0:00:10.4]} 49. Bd3 {[%clk 0:00:07.5]}
49... Ke6 {[%clk 0:00:08.7]} 50. g4 {[%clk 0:00:07.7]} 50... c5+ {[%clk
0:00:06.5]} 51. Kc3 {[%clk 0:00:07.4]} 51... Kd5 {[%clk 0:00:06.9]} 52. a4
{[%clk 0:00:07.7]} 52... Nb7 {[%clk 0:00:03.3]} 53. h4 {[%clk 0:00:07.2]} 53...
Nd6 {[%clk 0:00:03.4]} 54. Kd2 {[%clk 0:00:04.9]} 54... Kd4 {[%clk 0:00:01.5]}
55. Bc2 {[%clk 0:00:05.8]} 55... Nc4+ {[%clk 0:00:01.6]} 56. Ke2 {[%clk
0:00:05.9]} 56... Nd6 {[%clk 0:00:01.7]} 57. g5 {[%clk 0:00:06]} 57... b5 {[%clk
0:00:01.9]} 58. a5 {[%clk 0:00:05.9]} 58... b4 {[%clk 0:00:02.1]} 59. a6 {[%clk
0:00:06.4]} 59... Nb5 {[%clk 0:00:01.1]} 60. f5 {[%clk 0:00:06.3]} 60... Na7
{[%clk 0:00:02]} 61. f6 {[%clk 0:00:06.3]} 61... gxf6 {[%clk 0:00:01.2]} 62.
gxh6 {[%clk 0:00:06.9]} 62... b3 {[%clk 0:00:01.8]} 63. h7 {[%clk 0:00:07.8]}
63... bxc2 {[%clk 0:00:02.2]} 64. Kd2 {[%clk 0:00:06.8]} 64... Nb5 {[%clk
0:00:01.1]} 65. h8=Q {[%clk 0:00:06.3]} 65... c4 {[%clk 0:00:01.3]} 66. Qd8+
{[%clk 0:00:05.9]} 66... Kc5 {[%clk 0:00:02.2]} 67. Qc8+ {[%clk 0:00:05.9]}
67... Kb4 {[%clk 0:00:03.1]} 68. Kxc2 {[%clk 0:00:06.1]} 68... Nd4+ {[%clk
0:00:03]} 69. Kd1 {[%clk 0:00:06.6]} 69... Nb5 {[%clk 0:00:03.3]} 70. Qb7 {[%clk
0:00:06.9]} 70... Kb3 {[%clk 0:00:04.2]} 71. Qxb5+ {[%clk 0:00:06.5]} 71... Kc3
{[%clk 0:00:05.1]} 72. a7 {[%clk 0:00:07.1]} 72... f5 {[%clk 0:00:06]} 73. a8=Q
{[%clk 0:00:07.6]} 73... f4 {[%clk 0:00:06.9]} 74. Qf3+ {[%clk 0:00:07.6]} 74...
Kd4 {[%clk 0:00:06.5]} 75. Qbd5# {[%clk 0:00:08]} 1-0

[Event "Early-Titled-Tuesday-Blitz-July-09-2024"]
[Site "Chess.com"]
[Date "2024.07.09"]
[Round "1"]
[White "Brown_Bear_MGL"]
[Black "jasrom"]
[Result "1/2-1/2"]
[WhiteElo "2617"]
[BlackElo "2315"]
[TimeControl "180+1"]
[EndTime "8:08:49 PDT"]
[Termination "Game drawn by repetition"]

1. b3 {[%clk 0:02:59.7]} 1... Nf6 {[%clk 0:02:57.2]} 2. Bb2 {[%clk 0:02:58.2]}
2... c5 {[%clk 0:02:57.7]} 3. e3 {[%clk 0:02:56]} 3... Nc6 {[%clk 0:02:57.7]} 4.
Nf3 {[%clk 0:02:54.6]} 4... a6 {[%clk 0:02:57.5]} 5. Be2 {[%clk 0:02:53.7]} 5...
d5 {[%clk 0:02:57.1]} 6. d4 {[%clk 0:02:52.2]} 6... e6 {[%clk 0:02:50.9]} 7. O-O
{[%clk 0:02:51]} 7... b5 {[%clk 0:02:51]} 8. c4 {[%clk 0:02:37.4]} 8... dxc4
{[%clk 0:02:36.9]} 9. bxc4 {[%clk 0:02:35.8]} 9... b4 {[%clk 0:02:36.9]} 10. a3
{[%clk 0:02:21.4]} 10... Be7 {[%clk 0:02:13.7]} 11. axb4 {[%clk 0:02:18.7]}
11... cxb4 {[%clk 0:02:10.1]} 12. d5 {[%clk 0:02:18.4]} 12... exd5 {[%clk
0:02:08.3]} 13. cxd5 {[%clk 0:02:17.1]} 13... Qxd5 {[%clk 0:01:58]} 14. Qxd5
{[%clk 0:02:14.2]} 14... Nxd5 {[%clk 0:01:58.4]} 15. Bxg7 {[%clk 0:02:14.3]}
15... Rg8 {[%clk 0:01:55.4]} 16. Bb2 {[%clk 0:02:13.8]} 16... Bh3 {[%clk
0:01:38.5]} 17. Ne1 {[%clk 0:02:09.1]} 17... a5 {[%clk 0:01:36.9]} 18. Kh1
{[%clk 0:01:55.4]} 18... Bd7 {[%clk 0:01:36.4]} 19. Bb5 {[%clk 0:01:33]} 19...
Ne5 {[%clk 0:01:16]} 20. Bxd7+ {[%clk 0:01:23.2]} 20... Nxd7 {[%clk 0:01:16.9]}
21. e4 {[%clk 0:01:18.8]} 21... Nf4 {[%clk 0:01:12.4]} 22. g3 {[%clk 0:01:15]}
22... Ne6 {[%clk 0:01:08.1]} 23. Nd3 {[%clk 0:01:10.2]} 23... Ndc5 {[%clk
0:01:05.9]} 24. Nxc5 {[%clk 0:01:04.2]} 24... Nxc5 {[%clk 0:01:05.1]} 25. Nd2
{[%clk 0:01:03.7]} 25... a4 {[%clk 0:00:51.6]} 26. Bd4 {[%clk 0:01:01]} 26...
Ne6 {[%clk 0:00:49.4]} 27. Be5 {[%clk 0:00:54.9]} 27... f6 {[%clk 0:00:45.6]}
28. Bf4 {[%clk 0:00:46.8]} 28... Nxf4 {[%clk 0:00:41.3]} 29. gxf4 {[%clk
0:00:47.7]} 29... Bd6 {[%clk 0:00:41.7]} 30. e5 {[%clk 0:00:45.5]} 30... Be7
{[%clk 0:00:30.9]} 31. Nc4 {[%clk 0:00:43]} 31... Kf7 {[%clk 0:00:21.3]} 32. Nb6
{[%clk 0:00:41.7]} 32... Ra6 {[%clk 0:00:17.6]} 33. Nd5 {[%clk 0:00:35.4]} 33...
a3 {[%clk 0:00:12.3]} 34. Rfb1 {[%clk 0:00:33.2]} 34... Rb8 {[%clk 0:00:10.9]}
35. Rb3 {[%clk 0:00:30.7]} 35... fxe5 {[%clk 0:00:08.5]} 36. fxe5 {[%clk
0:00:30.3]} 36... Ke6 {[%clk 0:00:08.9]} 37. Nc7+ {[%clk 0:00:26.9]} 37... Kxe5
{[%clk 0:00:08.2]} 38. Nxa6 {[%clk 0:00:27.8]} 38... Rb6 {[%clk 0:00:03.4]} 39.
Re3+ {[%clk 0:00:15.5]} 39... Kd4 {[%clk 0:00:03.3]} 40. Rxe7 {[%clk 0:00:13]}
40... Rxa6 {[%clk 0:00:03.7]} 41. Rb7 {[%clk 0:00:09.6]} 41... Kc3 {[%clk
0:00:03.2]} 42. Rxh7 {[%clk 0:00:05.7]} 42... Kb2 {[%clk 0:00:03.2]} 43. Rg1
{[%clk 0:00:02.5]} 43... b3 {[%clk 0:00:03.6]} 44. Rb7 {[%clk 0:00:02.1]} 44...
a2 {[%clk 0:00:04.1]} 45. Kg2 {[%clk 0:00:01.5]} 45... a1=Q {[%clk 0:00:04.4]}
46. Rxa1 {[%clk 0:00:01.6]} 46... Rxa1 {[%clk 0:00:05.2]} 47. h4 {[%clk
0:00:02]} 47... Kc3 {[%clk 0:00:05.5]} 48. Kg3 {[%clk 0:00:02.1]} 48... Ra4
{[%clk 0:00:05.6]} 49. h5 {[%clk 0:00:01.9]} 49... Rb4 {[%clk 0:00:05]} 50. Re7
{[%clk 0:00:01.8]} 50... b2 {[%clk 0:00:04.4]} 51. Re1 {[%clk 0:00:02.4]} 51...
Kd2 {[%clk 0:00:04.4]} 52. Rg1 {[%clk 0:00:01.9]} 52... Rb3+ {[%clk 0:00:04.7]}
53. f3 {[%clk 0:00:02.2]} 53... Ke2 {[%clk 0:00:03.9]} 54. Kg4 {[%clk
0:00:02.1]} 54... Rxf3 {[%clk 0:00:03.4]} 55. Rb1 {[%clk 0:00:02.2]} 55... Rb3
{[%clk 0:00:02.9]} 56. Kg5 {[%clk 0:00:02.7]} 56... Kf3 {[%clk 0:00:02.6]} 57.
h6 {[%clk 0:00:03.1]} 57... Rb5+ {[%clk 0:00:02]} 58. Kg6 {[%clk 0:00:03.5]}
58... Rb6+ {[%clk 0:00:02.5]} 59. Kg7 {[%clk 0:00:04]} 59... Rb7+ {[%clk
0:00:02.5]} 60. Kg6 {[%clk 0:00:04.5]} 60... Rb6+ {[%clk 0:00:03]} 61. Kg7
{[%clk 0:00:05.1]} 61... Rb7+ {[%clk 0:00:03.4]} 62. Kg8 {[%clk 0:00:05.7]}
62... Rb8+ {[%clk 0:00:03.5]} 63. Kf7 {[%clk 0:00:06]} 63... Rb7+ {[%clk
0:00:03.9]} 64. Kf6 {[%clk 0:00:06.5]} 64... Rb6+ {[%clk 0:00:04]} 65. Kg5
{[%clk 0:00:07.2]} 65... Rb5+ {[%clk 0:00:04.3]} 66. Kh4 {[%clk 0:00:07.6]}
66... Rb4+ {[%clk 0:00:03.6]} 67. Kh5 {[%clk 0:00:07.8]} 67... Rb5+ {[%clk
0:00:03.9]} 68. Kg6 {[%clk 0:00:08.4]} 68... Rb6+ {[%clk 0:00:03]} 1/2-1/2

[Event "Early-Titled-Tuesday-Blitz-July-09-2024"]
[Site "Chess.com"]
[Date "2024.07.09"]
[Round "1"]
[White "Sawatdeekhrap"]
[Black "adreyd"]
[Result "1-0"]
[WhiteElo "2769"]
[BlackElo "2423"]
[TimeControl "180+1"]
[EndTime "8:08:55 PDT"]
[Termination "Sawatdeekhrap won by checkmate"]

1. e4 {[%clk 0:02:54.7]} 1... b6 {[%clk 0:02:58.7]} 2. d4 {[%clk 0:02:53.1]}
2... Bb7 {[%clk 0:02:58.6]} 3. Bd3 {[%clk 0:02:51.4]} 3... e6 {[%clk 0:02:58.7]}
4. Nf3 {[%clk 0:02:50.5]} 4... c5 {[%clk 0:02:58.6]} 5. c3 {[%clk 0:02:45.1]}
5... Nf6 {[%clk 0:02:57.8]} 6. Qe2 {[%clk 0:02:33.5]} 6... d5 {[%clk 0:02:56.9]}
7. e5 {[%clk 0:02:33.1]} 7... Nfd7 {[%clk 0:02:56.7]} 8. Bg5 {[%clk 0:02:30]}
8... Qc7 {[%clk 0:02:52.3]} 9. O-O {[%clk 0:02:26.2]} 9... Nc6 {[%clk
0:02:51.4]} 10. a3 {[%clk 0:02:24.6]} 10... h6 {[%clk 0:02:47.1]} 11. Bh4 {[%clk
0:02:15.8]} 11... g5 {[%clk 0:02:42.4]} 12. Bg3 {[%clk 0:02:15.1]} 12... Be7
{[%clk 0:02:39.5]} 13. b4 {[%clk 0:02:09.2]} 13... h5 {[%clk 0:02:32.7]} 14. h4
{[%clk 0:02:04.2]} 14... g4 {[%clk 0:02:02.3]} 15. Nfd2 {[%clk 0:01:53.7]} 15...
c4 {[%clk 0:01:05]} 16. Bc2 {[%clk 0:01:49.9]} 16... Qd8 {[%clk 0:01:04.6]} 17.
f4 {[%clk 0:01:27.5]} 17... Bxh4 {[%clk 0:01:02]} 18. Bxh4 {[%clk 0:01:27.6]}
18... Qxh4 {[%clk 0:01:02.9]} 19. f5 {[%clk 0:01:28.2]} 19... O-O-O {[%clk
0:00:57.7]} 20. a4 {[%clk 0:01:26.9]} 20... Kb8 {[%clk 0:00:45.4]} 21. a5 {[%clk
0:01:26.2]} 21... b5 {[%clk 0:00:45.2]} 22. a6 {[%clk 0:01:26.4]} 22... Bc8
{[%clk 0:00:45.4]} 23. Na3 {[%clk 0:01:26.3]} 23... Bxa6 {[%clk 0:00:43.8]} 24.
Naxc4 {[%clk 0:01:26.1]} 24... bxc4 {[%clk 0:00:20.3]} 25. Rxa6 {[%clk
0:01:25.4]} 25... Kb7 {[%clk 0:00:18.5]} 26. Rfa1 {[%clk 0:01:23.9]} 26... Ndb8
{[%clk 0:00:16.9]} 27. R6a3 {[%clk 0:01:09.6]} 27... a6 {[%clk 0:00:13.7]} 28.
Ba4 {[%clk 0:01:06.4]} 28... Na7 {[%clk 0:00:12.8]} 29. Rb1 {[%clk 0:01:01.6]}
29... Nb5 {[%clk 0:00:11.4]} 30. Bxb5 {[%clk 0:01:01.7]} 30... axb5 {[%clk
0:00:12.3]} 31. Rba1 {[%clk 0:01:02.4]} 31... Nc6 {[%clk 0:00:12.5]} 32. Qf2
{[%clk 0:00:56.4]} 32... Qxf2+ {[%clk 0:00:09.7]} 33. Kxf2 {[%clk 0:00:57.3]}
33... h4 {[%clk 0:00:05]} 34. f6 {[%clk 0:00:42.1]} 34... Rdg8 {[%clk
0:00:04.9]} 35. Rh1 {[%clk 0:00:39]} 35... h3 {[%clk 0:00:04.7]} 36. Kg3 {[%clk
0:00:32.2]} 36... hxg2 {[%clk 0:00:04.7]} 37. Kxg2 {[%clk 0:00:31.6]} 37... Rxh1
{[%clk 0:00:04.4]} 38. Kxh1 {[%clk 0:00:32.5]} 38... Rh8+ {[%clk 0:00:04.9]} 39.
Kg2 {[%clk 0:00:31.2]} 39... Rh3 {[%clk 0:00:05.8]} 40. Nb1 {[%clk 0:00:18.1]}
40... Rd3 {[%clk 0:00:05.4]} 41. Ra2 {[%clk 0:00:15.4]} 41... Rd1 {[%clk
0:00:04]} 42. Rb2 {[%clk 0:00:15.6]} 42... Rd3 {[%clk 0:00:02.8]} 43. Rf2 {[%clk
0:00:11.3]} 43... Na7 {[%clk 0:00:02.8]} 44. Rf4 {[%clk 0:00:10]} 44... Rd1
{[%clk 0:00:03.1]} 45. Rf1 {[%clk 0:00:09.8]} 45... Rd3 {[%clk 0:00:02.1]} 46.
Rf4 {[%clk 0:00:07.9]} 46... Rd1 {[%clk 0:00:02]} 47. Rf1 {[%clk 0:00:08.5]}
47... Rd3 {[%clk 0:00:02.5]} 48. Rh1 {[%clk 0:00:07.6]} 48... g3 {[%clk
0:00:02.6]} 49. Rh7 {[%clk 0:00:06.2]} 49... Rd1 {[%clk 0:00:02.2]} 50. Rxf7+
{[%clk 0:00:06.7]} 50... Kb6 {[%clk 0:00:02.2]} 51. Rxa7 {[%clk 0:00:06.4]}
51... Kxa7 {[%clk 0:00:01.3]} 52. f7 {[%clk 0:00:07]} 52... Rxb1 {[%clk
0:00:01.6]} 53. f8=Q {[%clk 0:00:07]} 53... Rb3 {[%clk 0:00:02.2]} 54. Qc5+
{[%clk 0:00:06.9]} 54... Ka6 {[%clk 0:00:02.7]} 55. Qc6+ {[%clk 0:00:07.4]}
55... Ka7 {[%clk 0:00:03.1]} 56. Qxe6 {[%clk 0:00:07.7]} 56... Rxc3 {[%clk
0:00:03.2]} 57. Qd7+ {[%clk 0:00:07.5]} 57... Kb6 {[%clk 0:00:02.8]} 58. Qd6+
{[%clk 0:00:07.4]} 58... Ka7 {[%clk 0:00:03]} 59. Qxd5 {[%clk 0:00:08.3]} 59...
Rb3 {[%clk 0:00:01.8]} 60. Qc5+ {[%clk 0:00:08]} 60... Ka6 {[%clk 0:00:01]} 61.
e6 {[%clk 0:00:07.4]} 61... c3 {[%clk 0:00:01.1]} 62. e7 {[%clk 0:00:07.3]}
62... Rb2+ {[%clk 0:00:01.6]} 63. Kxg3 {[%clk 0:00:07.2]} 63... c2 {[%clk
0:00:02.5]} 64. Qc6+ {[%clk 0:00:04.8]} 64... Ka7 {[%clk 0:00:02]} 65. Qc5+
{[%clk 0:00:05.6]} 65... Ka6 {[%clk 0:00:02.1]} 66. e8=Q {[%clk 0:00:06.3]}
66... c1=Q {[%clk 0:00:01.5]} 67. Qxc1 {[%clk 0:00:06.5]} 67... Rb3+ {[%clk
0:00:01.7]} 68. Qce3 {[%clk 0:00:06.5]} 68... Rxe3+ {[%clk 0:00:01.9]} 69. Qxe3
{[%clk 0:00:07.3]} 69... Kb6 {[%clk 0:00:02.6]} 70. Qc3 {[%clk 0:00:07.2]} 70...
Kb7 {[%clk 0:00:02.8]} 71. Qc5 {[%clk 0:00:07.6]} 71... Ka6 {[%clk 0:00:02.9]}
72. Qc6+ {[%clk 0:00:08.2]} 72... Ka7 {[%clk 0:00:03.2]} 73. Qxb5 {[%clk
0:00:09.1]} 73... Ka8 {[%clk 0:00:03.3]} 74. Kf4 {[%clk 0:00:10]} 74... Ka7
{[%clk 0:00:04.2]} 75. Ke5 {[%clk 0:00:10.9]} 75... Ka8 {[%clk 0:00:05.1]} 76.
Kd6 {[%clk 0:00:11.8]} 76... Ka7 {[%clk 0:00:06]} 77. Kc7 {[%clk 0:00:12.7]}
77... Ka8 {[%clk 0:00:06.9]} 78. Qb7# {[%clk 0:00:13.6]} 1-0

[Event "Early-Titled-Tuesday-Blitz-July-09-2024"]
[Site "Chess.com"]
[Date "2024.07.09"]
[Round "1"]
[White "Smiechu"]
[Black "baki83"]
[Result "1/2-1/2"]
[WhiteElo "2456"]
[BlackElo "2808"]
[TimeControl "180+1"]
[EndTime "8:08:57 PDT"]
[Termination "Game drawn - insufficient material"]

1. e4 {[%clk 0:02:59.3]} 1... c5 {[%clk 0:02:01.6]} 2. Nf3 {[%clk 0:02:53.7]}
2... d6 {[%clk 0:02:01.5]} 3. d4 {[%clk 0:02:53.4]} 3... cxd4 {[%clk 0:02:02.4]}
4. Nxd4 {[%clk 0:02:52.5]} 4... Nf6 {[%clk 0:02:03]} 5. Nc3 {[%clk 0:02:51.4]}
5... Nc6 {[%clk 0:02:03.6]} 6. Be3 {[%clk 0:02:49.9]} 6... Ng4 {[%clk
0:02:02.6]} 7. Bb5 {[%clk 0:02:49.9]} 7... Nxe3 {[%clk 0:01:50.1]} 8. fxe3
{[%clk 0:02:50.8]} 8... Bd7 {[%clk 0:01:48.4]} 9. Bxc6 {[%clk 0:02:51]} 9...
bxc6 {[%clk 0:01:48.3]} 10. O-O {[%clk 0:02:51.4]} 10... e6 {[%clk 0:01:47.3]}
11. e5 {[%clk 0:02:51.3]} 11... Be7 {[%clk 0:01:06.5]} 12. exd6 {[%clk
0:02:51.1]} 12... Bxd6 {[%clk 0:01:05.6]} 13. Ne4 {[%clk 0:02:51.1]} 13... Bxh2+
{[%clk 0:01:02.2]} 14. Kxh2 {[%clk 0:02:46.8]} 14... Qh4+ {[%clk 0:01:02.5]} 15.
Kg1 {[%clk 0:02:44.7]} 15... Qxe4 {[%clk 0:01:03]} 16. Qd2 {[%clk 0:02:30.4]}
16... O-O {[%clk 0:01:00.5]} 17. Nb3 {[%clk 0:02:11.7]} 17... Qd5 {[%clk
0:00:52]} 18. Qc3 {[%clk 0:02:08.3]} 18... Rad8 {[%clk 0:00:47.1]} 19. Rad1
{[%clk 0:02:05.9]} 19... Qg5 {[%clk 0:00:47.5]} 20. Nc5 {[%clk 0:02:00.4]} 20...
Bc8 {[%clk 0:00:47.2]} 21. Ne4 {[%clk 0:01:57.8]} 21... Qg4 {[%clk 0:00:39.9]}
22. Rxd8 {[%clk 0:01:51.1]} 22... Rxd8 {[%clk 0:00:40.8]} 23. Qxc6 {[%clk
0:01:41.9]} 23... h5 {[%clk 0:00:36.1]} 24. Nd6 {[%clk 0:01:26]} 24... Rf8
{[%clk 0:00:23.1]} 25. Nxc8 {[%clk 0:01:23]} 25... Qg5 {[%clk 0:00:20.7]} 26.
Nd6 {[%clk 0:01:07.5]} 26... Qxe3+ {[%clk 0:00:20.4]} 27. Kh1 {[%clk 0:01:07.6]}
27... Qd4 {[%clk 0:00:18.3]} 28. Ne4 {[%clk 0:00:37.9]} 28... Qxb2 {[%clk
0:00:14.1]} 29. Qc3 {[%clk 0:00:34.7]} 29... Qxa2 {[%clk 0:00:13.2]} 30. Ng3
{[%clk 0:00:28.4]} 30... Qd5 {[%clk 0:00:12.1]} 31. Qf3 {[%clk 0:00:24]} 31...
Qd2 {[%clk 0:00:09.7]} 32. Nxh5 {[%clk 0:00:18.3]} 32... Qh6 {[%clk 0:00:09.1]}
33. Qh3 {[%clk 0:00:15.4]} 33... Qg5 {[%clk 0:00:06.6]} 34. Rf3 {[%clk
0:00:13.5]} 34... Qh6 {[%clk 0:00:03.8]} 35. Nf6+ {[%clk 0:00:10.2]} 35... Kh8
{[%clk 0:00:03.8]} 36. Qxh6+ {[%clk 0:00:07.9]} 36... gxh6 {[%clk 0:00:04.2]}
37. Nd7 {[%clk 0:00:07.5]} 37... Rc8 {[%clk 0:00:03]} 38. Rxf7 {[%clk
0:00:04.8]} 38... Kg8 {[%clk 0:00:03.5]} 39. Re7 {[%clk 0:00:04.8]} 39... Rxc2
{[%clk 0:00:03.7]} 40. Nf6+ {[%clk 0:00:04.8]} 40... Kf8 {[%clk 0:00:03.9]} 41.
Rxa7 {[%clk 0:00:04.8]} 41... Rf2 {[%clk 0:00:04.1]} 42. Ng4 {[%clk 0:00:04.8]}
42... Rf1+ {[%clk 0:00:04.7]} 43. Kh2 {[%clk 0:00:04.9]} 43... h5 {[%clk
0:00:05.3]} 44. Ne3 {[%clk 0:00:04.9]} 44... Re1 {[%clk 0:00:05.2]} 45. Nc4
{[%clk 0:00:04]} 45... Re4 {[%clk 0:00:05.2]} 46. Nd2 {[%clk 0:00:04]} 46... Re3
{[%clk 0:00:04.1]} 47. Nf3 {[%clk 0:00:04.2]} 47... Re4 {[%clk 0:00:04.3]} 48.
Kg3 {[%clk 0:00:04.3]} 48... Kg8 {[%clk 0:00:04.2]} 49. Kf2 {[%clk 0:00:03.9]}
49... Rf4 {[%clk 0:00:03.8]} 50. g3 {[%clk 0:00:03.8]} 50... Re4 {[%clk
0:00:04]} 51. Nd2 {[%clk 0:00:03.5]} 51... Rd4 {[%clk 0:00:04.1]} 52. Nf3 {[%clk
0:00:03.7]} 52... Re4 {[%clk 0:00:04.5]} 53. Nd2 {[%clk 0:00:03.1]} 53... Rd4
{[%clk 0:00:04.8]} 54. Ke3 {[%clk 0:00:03.5]} 54... Rg4 {[%clk 0:00:05.2]} 55.
Kf3 {[%clk 0:00:03.9]} 55... Rg5 {[%clk 0:00:04.3]} 56. Ne4 {[%clk 0:00:03.8]}
56... Rf5+ {[%clk 0:00:04.9]} 57. Ke3 {[%clk 0:00:03.9]} 57... Kf8 {[%clk
0:00:05.6]} 58. Nf2 {[%clk 0:00:02.7]} 58... Re5+ {[%clk 0:00:05.5]} 59. Ne4
{[%clk 0:00:03]} 59... Rf5 {[%clk 0:00:06]} 60. Ra6 {[%clk 0:00:03.4]} 60... Ke7
{[%clk 0:00:05.7]} 61. Nd2 {[%clk 0:00:02.9]} 61... Re5+ {[%clk 0:00:05.8]} 62.
Kf3 {[%clk 0:00:03]} 62... Rf5+ {[%clk 0:00:06.4]} 63. Kg2 {[%clk 0:00:03]}
63... Re5 {[%clk 0:00:07]} 64. Nf3 {[%clk 0:00:03.3]} 64... Rf5 {[%clk
0:00:07.5]} 65. Nh4 {[%clk 0:00:02.7]} 65... Rd5 {[%clk 0:00:06.7]} 66. Kh3
{[%clk 0:00:03.1]} 66... Kf7 {[%clk 0:00:07]} 67. Ng2 {[%clk 0:00:03.4]} 67...
Rd1 {[%clk 0:00:07]} 68. Nf4 {[%clk 0:00:03.7]} 68... Rh1+ {[%clk 0:00:06.9]}
69. Kg2 {[%clk 0:00:04.1]} 69... Re1 {[%clk 0:00:07.4]} 70. Nxh5 {[%clk
0:00:04.4]} 70... Re4 {[%clk 0:00:07.6]} 71. Nf4 {[%clk 0:00:04.6]} 71... e5
{[%clk 0:00:08.2]} 72. Kf3 {[%clk 0:00:04.1]} 72... Rb4 {[%clk 0:00:08]} 73. Nd3
{[%clk 0:00:04.1]} 73... e4+ {[%clk 0:00:08.3]} 74. Ke3 {[%clk 0:00:04.2]} 74...
exd3 {[%clk 0:00:09.2]} 75. Kxd3 {[%clk 0:00:04.3]} 75... Rg4 {[%clk 0:00:09.8]}
76. Ke3 {[%clk 0:00:04.6]} 76... Rxg3+ {[%clk 0:00:10.3]} 77. Kf4 {[%clk
0:00:05]} 77... Rb3 {[%clk 0:00:10.9]} 78. Kg4 {[%clk 0:00:05.2]} 78... Rb5
{[%clk 0:00:11.6]} 79. Kf4 {[%clk 0:00:05.5]} 79... Rc5 {[%clk 0:00:12.2]} 80.
Kg4 {[%clk 0:00:05.9]} 80... Rc7 {[%clk 0:00:12.9]} 81. Kf4 {[%clk 0:00:06.2]}
81... Re7 {[%clk 0:00:13.6]} 82. Kg4 {[%clk 0:00:06.6]} 82... Re4+ {[%clk
0:00:14.1]} 83. Kf3 {[%clk 0:00:06.5]} 83... Re6 {[%clk 0:00:14.2]} 84. Rxe6
{[%clk 0:00:06]} 84... Kxe6 {[%clk 0:00:15]} 1/2-1/2